bitfinex/quotes_SOLUSD_20240922
["timestamp","ask_amount","ask_price","bid_price","bid_amount"]
[1726983420334,6.7646,147.83,147.78,6.7666]
[1726983420643,6.7637,147.85,147.8,6.7657]
[1726983420849,6.7637,147.85,147.8,19.52160429]
[1726983421055,6.7637,147.85,147.81,6.7653]
[1726983427156,6.7637,147.85,147.81,6.2653]
[1726983429258,6.7637,147.85,147.8,30.542584]
[1726983431038,6.7642,147.84,147.79,6.7662]
[1726983432348,6.7642,147.84,147.8,6.7658]
[1726983432548,6.7636,147.85,147.81,8.11841962]
[1726983433156,6.7636,147.85,147.81,6.7654]
[1726983433353,6.7636,147.85,147.8,6.7657]
[1726983433659,6.7641,147.84,147.8,6.7657]
[1726983436959,6.7651,147.82,147.78,6.7667]
[1726983438169,0.25098,147.85,147.73,6.3858]
[1726983438463,0.25098,147.85,147.75,12.75590429]
[1726983438669,16.26218,147.85,147.75,12.75590429]
[1726983439242,6.7655,147.81,147.77,6.7672]
[1726983441276,16.26218,147.85,147.78,6.7666]
[1726983441566,39.4401,147.89,147.8,6.7658]
[1726983442647,6.7639,147.85,147.8,6.7658]
[1726983443347,6.764,147.84,147.8,6.7658]
[1726983446862,6.7646,147.83,147.78,6.3858]
[1726983447450,6.7646,147.83,147.78,13.1522]
[1726983447758,6.7646,147.83,147.78,6.7664]
[1726983450877,16.13669,147.84,147.76,0.2526334]
[1726983451046,6.7659,147.8,147.76,0.2526334]
[1726983451463,6.7659,147.8,147.76,7.0202334]
[1726983451670,0.25098,147.83,147.76,7.0202334]
[1726983451671,6.7655,147.81,147.76,7.0202334]
[1726983451852,6.7651,147.82,147.77,6.7671]
[1726983452470,6.7646,147.83,147.78,6.7666]
[1726983452679,6.7641,147.84,147.79,8.11940506]
[1726983452983,6.7637,147.85,147.81,6.7654]
[1726983453160,6.7632,147.86,147.81,6.7654]
[1726983453560,6.7628,147.87,147.82,6.7646]
[1726983454674,6.7623,147.88,147.83,6.7643]
[1726983454885,6.7629,147.87,147.82,6.7649]
[1726983455659,6.7623,147.88,147.83,6.7644]
[1726983456162,6.7628,147.87,147.82,6.7648]
[1726983457584,6.7628,147.87,147.83,6.7645]
[1726983459486,6.7623,147.88,147.83,6.7645]
[1726983463296,6.7629,147.87,147.82,6.7648]
[1726983464997,6.7633,147.86,147.82,6.7648]
[1726983467397,6.7633,147.86,147.81,6.7653]
[1726983467599,6.7633,147.86,147.8,43.776884]
[1726983467779,6.7627,147.87,147.82,6.7649]
[1726983470599,6.7633,147.86,147.8,43.776884]
[1726983471980,24.027864,147.9,147.8,56.53278829]
[1726983472184,6.7626,147.88,147.83,6.7643]
[1726983472501,6.7628,147.87,147.83,6.7643]
[1726983473704,6.7628,147.87,147.82,6.7648]
[1726983476691,0.25098,147.88,147.79,6.4054]
[1726983476893,24.027864,147.88,147.79,6.4054]
[1726983477277,6.7636,147.85,147.8,6.7655]
[1726983479007,6.7641,147.84,147.8,6.7655]
[1726983481305,6.7637,147.85,147.8,6.7655]
[1726983481906,6.7641,147.84,147.8,6.7655]
[1726983490120,0.12549,147.83,147.75,6.174]
[1726983490318,6.7659,147.8,147.75,12.9418]
[1726983491396,6.7659,147.8,147.76,7.0202334]
[1726983492215,6.7664,147.79,147.76,0.2526334]
[1726983492918,6.7659,147.8,147.76,0.2526334]
[1726983495318,6.7663,147.79,147.76,0.2526334]
[1726983503703,6.7672,147.77,147.76,0.2526334]
[1726983503926,6.89269,147.77,147.76,0.2526334]
[1726983504604,7.01818,147.77,147.76,0.2526334]
[1726983513323,30.795064,147.77,147.76,0.2526334]
[1726983518533,7.01818,147.77,147.76,0.2526334]
[1726983526858,6.89269,147.77,147.76,0.2526334]
[1726983536163,7.01818,147.77,147.76,0.2526334]
[1726983540646,6.89269,147.77,147.76,0.2526334]
[1726983540965,7.01818,147.77,147.76,0.2526334]
[1726983553967,30.795064,147.77,147.76,0.2526334]
[1726983563995,51.135064,147.77,147.76,0.2526334]
[1726983567794,6.89499,147.72,147.71,0.3330038]
[1726983568170,7.02048,147.72,147.71,0.3330038]
[1726983572182,6.89499,147.72,147.71,0.3330038]
[1726983572383,6.7691,147.73,147.71,0.3330038]
[1726983575497,6.7678,147.76,147.71,7.1028038]
[1726983575986,6.7682,147.75,147.71,7.1028038]
[1726983576187,6.7682,147.75,147.71,0.3330038]
[1726983577296,6.7677,147.76,147.71,13.1927038]
[1726983578800,0.12549,147.75,147.71,6.4228038]
[1726983579003,0.25098,147.77,147.71,6.4228038]
[1726983579692,6.7682,147.75,147.71,6.4228038]
[1726983580902,6.7687,147.74,147.71,6.4228038]
[1726983585210,6.7692,147.73,147.71,0.3330038]
[1726983585506,6.89499,147.72,147.71,0.3330038]
[1726983586701,6.7695,147.72,147.71,0.3330038]
[1726983586893,6.7691,147.73,147.71,0.3330038]
[1726983589217,6.7695,147.72,147.71,0.3330038]
[1726983591202,6.7691,147.73,147.71,0.3330038]
[1726983597416,6.7695,147.72,147.71,0.3330038]
[1726983599117,6.7692,147.73,147.71,0.3330038]
[1726983599311,6.7687,147.74,147.71,0.3330038]
[1726983599510,6.89379,147.75,147.71,0.3330038]
[1726983600293,6.89379,147.75,147.71,7.1029038]
[1726983600294,6.7683,147.75,147.71,7.1029038]
[1726983600606,6.7689,147.74,147.71,0.3330038]
[1726983603623,6.7691,147.73,147.71,0.3330038]
[1726983604624,6.7687,147.74,147.71,0.3330038]
[1726983605424,6.7683,147.75,147.71,0.3330038]
[1726983610321,0.12549,147.77,147.71,6.4622038]
[1726983610505,0.12549,147.77,147.72,22.8379]
[1726983611230,6.89309,147.77,147.72,22.8379]
[1726983611533,6.7678,147.76,147.72,22.8379]
[1726983612911,6.7687,147.74,147.72,16.0687]
[1726983613115,6.7687,147.74,147.71,6.4622038]
[1726983613431,0.12549,147.77,147.71,6.4622038]
[1726983613432,0.12549,147.76,147.71,0.3330038]
[1726983613632,6.7691,147.73,147.71,0.3330038]
[1726983620121,6.7695,147.72,147.71,0.3330038]
[1726983623141,6.89499,147.72,147.71,0.3330038]
[1726983629749,7.02048,147.72,147.71,0.3330038]
[1726983635134,6.89499,147.72,147.71,0.3330038]
[1726983641841,6.7695,147.72,147.71,0.3330038]
[1726983645943,6.89499,147.72,147.71,0.3330038]
[1726983650453,7.02048,147.72,147.71,0.3330038]
[1726983654881,7.02048,147.72,147.67,0.35369298]
[1726983654882,6.7713,147.68,147.67,0.35369298]
[1726983655248,6.89679,147.68,147.67,0.35369298]
[1726983655661,7.02228,147.68,147.67,0.35369298]
[1726983656244,7.02228,147.68,147.67,9.298e-05]
[1726983656650,30.799164,147.68,147.67,9.298e-05]
[1726983656851,6.7736,147.63,147.62,0.353093]
[1726983657272,7.02458,147.63,147.62,0.353093]
[1726983657468,0.25098,147.63,147.62,0.353093]
[1726983657655,70.35,147.68,147.62,0.353093]
[1726983657972,24.027864,147.67,147.62,0.353093]
[1726983661159,65.3786,147.72,147.63,6.7732]
[1726983661558,65.3786,147.72,147.62,16.240693]
[1726983661763,15.3786,147.72,147.63,6.0351]
[1726983663097,0.25098,147.71,147.63,6.0351]
[1726983663296,0.25098,147.71,147.65,6.7727]
[1726983664469,24.027864,147.71,147.64,6.7731]
[1726983664672,31.82627363,147.71,147.63,12.8087]
[1726983665482,53.70371308,147.71,147.63,6.0351]
[1726983666669,53.70371308,147.71,147.62,16.240693]
[1726983666670,24.027864,147.69,147.62,23.014693]
[1726983668064,24.027864,147.69,147.63,6.7735]
[1726983668270,0.25098,147.69,147.63,6.7735]
[1726983669295,0.12549,147.67,147.63,6.7735]
[1726983670192,0.12549,147.67,147.64,6.7732]
[1726983670584,0.12549,147.67,147.63,6.7735]
[1726983677703,6.89749,147.67,147.63,6.7735]
[1726983678001,6.89749,147.67,147.62,7.127193]
[1726983678607,6.7728,147.65,147.62,0.353093]
[1726983678895,6.89879,147.64,147.62,0.353093]
[1726983679098,6.7733,147.64,147.62,0.353093]
[1726983679972,6.89829,147.65,147.62,0.353093]
[1726983681895,0.12549,147.65,147.62,0.353093]
[1726983682093,6.7723,147.66,147.62,0.353093]
[1726983682489,6.7723,147.66,147.62,7.127093]
[1726983682690,26.59694421,147.68,147.62,0.353093]
[1726983682997,6.7719,147.67,147.63,6.7733]
[1726983684281,0.12549,147.67,147.63,6.7733]
[1726983686094,6.89739,147.67,147.63,6.7733]
[1726983686296,6.89779,147.66,147.62,7.127093]
[1726983686479,6.89779,147.66,147.62,0.353093]
[1726983687501,6.89779,147.66,147.62,7.127193]
[1726983689699,6.7727,147.65,147.62,0.353093]
[1726983690005,0.12549,147.65,147.62,0.353093]
[1726983690313,6.89909,147.63,147.62,0.353093]
[1726983691289,6.7728,147.65,147.62,0.353093]
[1726983691484,0.12549,147.64,147.62,0.353093]
[1726983691993,6.89779,147.66,147.62,0.353093]
[1726983692199,0.12549,147.65,147.62,7.127193]
[1726983692518,25.89605238,147.67,147.62,7.127193]
[1726983692717,19.12425238,147.67,147.62,7.127193]
[1726983693007,25.89615238,147.67,147.62,7.127193]
[1726983693687,19.12425238,147.67,147.63,6.7736]
[1726983694601,19.12425238,147.67,147.66,6.7723]
[1726983695105,19.12425238,147.67,147.65,6.7726]
[1726983695304,19.12425238,147.67,147.62,20.353093]
[1726983695691,19.12425238,147.67,147.62,0.353093]
[1726983696000,19.12425238,147.67,147.65,6.7726]
[1726983700295,6.771,147.69,147.65,6.7726]
[1726983700905,6.771,147.69,147.64,6.7731]
[1726983702388,0.12549,147.68,147.64,6.7731]
[1726983702693,24.027864,147.7,147.62,7.127093]
[1726983703208,0.12549,147.66,147.62,7.127093]
[1726983711938,0.12549,147.66,147.62,0.353093]
[1726983712126,6.7736,147.63,147.62,0.353093]
[1726983712323,6.7733,147.64,147.62,0.353093]
[1726983714835,6.7728,147.65,147.62,0.353093]
[1726983715047,0.12549,147.64,147.62,0.353093]
[1726983717941,6.89879,147.64,147.62,0.353093]
[1726983720144,6.7736,147.63,147.62,0.353093]
[1726983720327,7.02458,147.63,147.62,0.353093]
[1726983722833,0.12549,147.63,147.62,0.353093]
[1726983723143,6.7733,147.64,147.62,0.353093]
[1726983726430,0.12549,147.63,147.62,0.353093]
[1726983728443,6.89909,147.63,147.62,0.353093]
[1726983728849,7.02458,147.63,147.62,0.353093]
[1726983735851,30.801464,147.63,147.62,0.353093]
[1726983736232,30.801464,147.63,147.58,0.3209482]
[1726983736233,6.90099,147.59,147.58,0.3209482]
[1726983736434,7.02648,147.59,147.58,0.3209482]
[1726983740843,0.12549,147.59,147.58,0.3209482]
[1726983741664,6.7748,147.61,147.58,0.3209482]
[1726983741961,18.02516515,147.63,147.58,0.3209482]
[1726983741962,6.7751,147.6,147.58,0.3209482]
[1726983743758,6.7755,147.59,147.58,0.3209482]
[1726983744147,6.90099,147.59,147.58,0.3209482]
[1726983746959,30.803364,147.59,147.58,0.3209482]
[1726983749048,7.02648,147.59,147.58,0.3209482]
[1726983754584,6.7755,147.59,147.58,0.3209482]
[1726983754788,6.7751,147.6,147.58,0.3209482]
[1726983755677,6.7755,147.59,147.58,0.3209482]
[1726983766504,6.7751,147.6,147.58,0.3209482]
[1726983766793,7.02648,147.59,147.58,0.3209482]
[1726983776314,6.90099,147.59,147.58,0.3209482]
[1726983778308,7.02648,147.59,147.58,0.3209482]
[1726983784515,30.803364,147.59,147.58,0.3209482]
[1726983795719,40.279881,147.59,147.58,0.3209482]
[1726983796206,40.279881,147.59,147.55,1.0]
[1726983796207,6.90239,147.56,147.55,1.0]
[1726983799894,7.02788,147.56,147.55,1.0]
[1726983805209,30.804764,147.56,147.55,1.0]
[1726983809112,6.7769,147.56,147.55,1.0]
[1726983810405,6.90239,147.56,147.55,1.0]
[1726983814629,30.804764,147.56,147.55,1.0]
[1726983816009,7.02788,147.56,147.55,1.0]
[1726983816225,6.90239,147.56,147.55,1.0]
[1726983817226,7.02788,147.56,147.55,1.0]
[1726983838640,7.05319164,147.59,147.55,1.0]
[1726983838841,6.7764,147.57,147.55,1.0]
[1726983840543,6.7769,147.56,147.55,1.0]
[1726983843828,6.7765,147.57,147.55,1.0]
[1726983844636,6.7759,147.59,147.55,7.7772]
[1726983844952,6.7751,147.6,147.55,7.7772]
[1726983845443,6.7751,147.6,147.56,8.13205222]
[1726983845640,32.58855409,147.64,147.56,8.13205222]
[1726983845641,6.7746,147.61,147.56,8.13205222]
[1726983845838,22.42805409,147.64,147.59,6.7753]
[1726983846248,6.7733,147.64,147.59,6.7753]
[1726983846629,6.7733,147.64,147.6,1.35489776]
[1726983846832,6.7733,147.64,147.59,6.7753]
[1726983850167,6.7733,147.64,147.6,6.7749]
[1726983850455,16.0209504,147.69,147.6,6.7749]
[1726983850456,0.12549,147.66,147.6,6.7749]
[1726983851035,6.7731,147.65,147.6,6.7749]
[1726983851662,6.7733,147.64,147.6,6.7749]
[1726983852459,6.7733,147.64,147.59,6.7754]
[1726983852949,6.7733,147.64,147.6,6.7749]
[1726983853151,6.7733,147.64,147.59,6.7754]
[1726983853353,6.7733,147.64,147.6,6.775]
[1726983855660,0.12549,147.68,147.61,14.78055187]
[1726983855855,0.2526334,147.69,147.62,23.117]
[1726983856047,6.7721,147.67,147.62,23.117]
[1726983857259,7.0236334,147.69,147.62,16.343]
[1726983857467,0.2526334,147.69,147.65,6.7726]
[1726983857770,0.2526334,147.69,147.66,6.7722]
[1726983859656,0.2526334,147.69,147.65,6.7726]
[1726983861251,7.0236334,147.69,147.65,6.7726]
[1726983863546,7.0236334,147.69,147.64,6.7732]
[1726983865555,6.7714,147.68,147.64,6.7732]
[1726983865946,0.2526334,147.69,147.62,16.343]
[1726983866250,6.7723,147.66,147.62,16.343]
[1726983866866,0.2526334,147.69,147.62,23.117]
[1726983867067,6.7714,147.68,147.63,8.12768354]
[1726983867246,6.7714,147.68,147.63,6.7732]
[1726983867572,6.7718,147.67,147.63,6.7732]
[1726983867747,0.2526334,147.69,147.64,20.0]
[1726983868649,6.7714,147.68,147.64,20.0]
[1726983872654,7.0235334,147.69,147.64,6.7729]
[1726983872854,6.7714,147.68,147.64,6.7729]
[1726983878872,7.0236334,147.69,147.65,1.35440242]
[1726983879057,7.0236334,147.69,147.64,6.7729]
[1726983882888,6.0236334,147.69,147.64,6.7729]
[1726983883054,6.0236334,147.69,147.65,1.3543018]
[1726983883583,6.0236334,147.69,147.64,6.7729]
[1726983890885,6.7715,147.68,147.63,26.7735]
[1726983891259,6.7719,147.67,147.63,6.7735]
[1726983891877,16.9246,147.72,147.63,20.0]
[1726983891878,6.7723,147.66,147.63,20.0]
[1726983892084,6.7719,147.67,147.63,20.0]
[1726983893885,6.7719,147.67,147.62,23.117]
[1726983895066,0.25098,147.69,147.62,16.343]
[1726983895480,6.7726,147.66,147.62,16.343]
[1726983895973,6.7728,147.65,147.6,20.0]
[1726983896187,6.7732,147.64,147.6,26.775]
[1726983897591,6.7728,147.65,147.6,26.775]
[1726983898987,6.7728,147.65,147.6,25.775]
[1726983902793,6.7728,147.65,147.58,35.03393769]
[1726983902794,6.7743,147.62,147.58,22.2780334]
[1726983904769,6.7753,147.6,147.58,0.2526334]
[1726983904993,0.25098,147.63,147.58,0.2526334]
[1726983905576,6.7755,147.59,147.58,0.2526334]
[1726983906967,6.7745,147.62,147.58,0.2526334]
[1726983907170,6.7745,147.62,147.58,1.60763681]
[1726983907399,6.7745,147.62,147.58,0.2526334]
[1726983909383,6.7746,147.61,147.58,0.2526334]
[1726983909703,6.7742,147.62,147.58,0.2526334]
[1726983909902,0.12549,147.63,147.58,0.2526334]
[1726983910098,24.027864,147.64,147.58,0.2526334]
[1726983910303,74.027864,147.64,147.58,0.2526334]
[1726983911391,6.7755,147.59,147.58,0.2526334]
[1726983914085,0.25098,147.62,147.58,0.2526334]
[1726983914483,24.027864,147.62,147.58,0.2526334]
[1726983914713,6.7755,147.59,147.58,0.2526334]
[1726983916793,6.90099,147.59,147.58,0.2526334]
[1726983917195,7.02648,147.59,147.58,0.2526334]
[1726983917394,30.803364,147.59,147.58,0.2526334]
[1726983918305,7.02648,147.59,147.58,0.2526334]
[1726983919196,16.9335,147.64,147.58,0.2526334]
[1726983919517,6.7747,147.61,147.58,0.2526334]
[1726983923201,6.7742,147.62,147.58,1.60770909]
[1726983926696,6.7742,147.62,147.58,0.2526334]
[1726983928794,6.7747,147.61,147.58,0.2526334]
[1726983929202,6.775,147.6,147.58,0.2526334]
[1726983937630,6.7755,147.59,147.58,0.2526334]
[1726983937930,24.027864,147.64,147.58,0.2526334]
[1726983939006,6.7751,147.6,147.58,0.2526334]
[1726983943930,6.7755,147.59,147.58,0.2526334]
[1726983947031,6.90099,147.59,147.58,0.2526334]
[1726983948922,7.02648,147.59,147.58,0.2526334]
[1726983953231,7.02648,147.59,147.55,1.0]
[1726983953232,6.90239,147.56,147.55,1.0]
[1726983954029,6.7769,147.56,147.55,1.0]
[1726983959138,6.7764,147.57,147.55,1.0]
[1726983964436,6.7769,147.56,147.55,1.0]
[1726983968026,6.90239,147.56,147.55,1.0]
[1726983969851,6.7769,147.56,147.55,1.0]
[1726983970055,6.7764,147.58,147.55,1.0]
[1726983970541,16.9348,147.63,147.55,7.7773]
[1726983970735,6.7753,147.6,147.56,1.35518672]
[1726983971248,6.7753,147.6,147.55,23.8057]
[1726983975067,6.7756,147.59,147.55,23.8057]
[1726983976958,6.7756,147.59,147.55,17.0284]
[1726983977256,6.7761,147.58,147.55,17.0284]
[1726983978236,0.25098,147.62,147.56,1.35531556]
[1726983978451,0.12549,147.62,147.56,1.35531556]
[1726983978655,22.57457894,147.65,147.56,14.11121985]
[1726983978947,22.57457894,147.65,147.56,18.95380429]
[1726983979149,15.5025,147.65,147.56,18.95380429]
[1726983979859,0.12549,147.64,147.56,18.95380429]
[1726983980073,0.25098,147.64,147.56,18.95380429]
[1726983980249,6.7746,147.61,147.57,6.7764]
[1726983984541,6.7746,147.61,147.58,1.35500574]
[1726983984748,6.7746,147.61,147.57,6.7764]
[1726983985164,6.7746,147.61,147.58,1.35500605]
[1726983985471,6.7746,147.61,147.57,6.7764]
[1726983987777,6.7746,147.61,147.56,12.9746]
[1726983990184,40.961364,147.64,147.56,6.1979]
[1726983990495,6.7751,147.6,147.56,6.1979]
[1726983990668,6.7746,147.61,147.56,6.1979]
[1726983992370,6.7751,147.6,147.56,12.9746]
[1726983994686,6.7747,147.61,147.57,1.35512157]
[1726983994993,6.7747,147.61,147.56,12.9746]
[1726983995491,6.7752,147.6,147.56,12.9746]
[1726983995990,6.7752,147.6,147.56,14.32971801]
[1726983998998,6.7752,147.6,147.56,12.9746]
[1726983999202,6.7752,147.6,147.56,14.32971828]
[1726983999384,6.7752,147.6,147.56,12.9746]
[1726983999885,6.7752,147.6,147.57,1.35511832]
[1726984000084,6.7752,147.6,147.56,12.9746]
[1726984000299,6.7752,147.6,147.56,14.32971871]
[1726984000472,6.7752,147.6,147.56,12.9746]
[1726984003370,6.7752,147.6,147.56,14.32971821]
[1726984003802,6.7746,147.61,147.57,6.7763]
[1726984005470,6.7742,147.62,147.56,6.1979]
[1726984005676,6.7733,147.64,147.6,6.7749]
[1726984005893,6.7729,147.65,147.61,1.35477262]
[1726984007299,6.7729,147.65,147.6,22.8123]
[1726984007877,6.7736,147.63,147.6,16.0374]
[1726984008094,9.47750173,147.65,147.57,36.0374]
[1726984008296,0.12549,147.64,147.57,36.0374]
[1726984008979,0.25098,147.65,147.57,42.8137]
[1726984009193,6.7746,147.61,147.57,42.8137]
[1726984010995,6.7746,147.61,147.57,16.0374]
[1726984015708,6.7753,147.6,147.57,16.0374]
[1726984019712,6.7746,147.61,147.57,22.8137]
[1726984020919,6.7746,147.61,147.57,16.0374]
[1726984021415,6.7753,147.6,147.57,16.0374]
[1726984021720,32.3783,147.64,147.55,1.0]
[1726984021915,6.7761,147.58,147.55,1.0]
[1726984022214,6.7756,147.59,147.55,1.0]
[1726984023918,6.7761,147.58,147.55,1.0]
[1726984024613,0.12549,147.61,147.55,1.0]
[1726984024614,6.7765,147.57,147.55,1.0]
[1726984029005,6.7761,147.58,147.55,1.0]
[1726984031017,6.7756,147.59,147.55,1.0]
[1726984032326,6.90039,147.61,147.56,8.1321239]
[1726984033128,6.7749,147.61,147.57,6.7762]
[1726984033505,6.7749,147.61,147.57,6.2762]
[1726984034539,6.7742,147.62,147.58,6.7757]
[1726984035728,6.7742,147.62,147.57,6.7763]
[1726984036229,6.7742,147.62,147.58,6.7758]
[1726984036437,6.7738,147.63,147.59,6.7753]
[1726984036616,6.7733,147.64,147.58,28.55140429]
[1726984036816,6.7727,147.65,147.61,6.7745]
[1726984039312,6.7723,147.66,147.61,6.7745]
[1726984039712,6.7728,147.65,147.61,6.7745]
[1726984040230,6.7728,147.65,147.6,6.7749]
[1726984040610,6.7733,147.64,147.6,6.7749]
[1726984041635,6.7728,147.65,147.61,8.12922747]
[1726984041839,22.37408233,147.68,147.62,8.1287544]
[1726984042019,6.7718,147.67,147.63,1.35457238]
[1726984042635,6.7718,147.67,147.62,6.7741]
[1726984043340,6.7724,147.66,147.62,6.7741]
[1726984047012,6.7724,147.66,147.63,1.35457709]
[1726984050951,6.7719,147.67,147.63,1.35457709]
[1726984053146,6.7723,147.66,147.62,6.7741]
[1726984053730,6.7723,147.66,147.63,1.35457175]
[1726984055749,6.7723,147.66,147.62,6.7741]
[1726984056647,6.7723,147.66,147.63,1.3545723]
[1726984058425,6.7719,147.67,147.63,1.3545723]
[1726984059346,6.7723,147.66,147.63,1.3545723]
[1726984059551,0.12549,147.67,147.61,6.7745]
[1726984060236,6.7728,147.65,147.61,6.7745]
[1726984060743,0.12549,147.67,147.59,20.0]
[1726984061226,6.7728,147.65,147.61,6.7745]
[1726984063356,6.7719,147.67,147.62,8.12873881]
[1726984063556,6.7719,147.67,147.63,6.7735]
[1726984063928,29.14548233,147.68,147.63,6.7735]
[1726984064228,6.7714,147.68,147.63,22.4824]
[1726984064739,6.7714,147.68,147.64,1.35452617]
[1726984068554,6.7714,147.68,147.63,22.4824]
[1726984069355,0.2526334,147.69,147.63,22.4824]
[1726984069650,6.7723,147.66,147.62,20.0]
[1726984070046,24.0295174,147.69,147.62,20.0]
[1726984070047,6.7719,147.67,147.62,26.7739]
[1726984070238,6.7719,147.67,147.63,1.35453052]
[1726984070648,6.7714,147.68,147.63,8.12803052]
[1726984075543,6.7718,147.67,147.63,8.12803052]
[1726984076049,6.7715,147.68,147.63,8.12803052]
[1726984076247,6.7715,147.68,147.64,22.0581]
[1726984076454,6.7715,147.68,147.65,1.35436131]
[1726984076634,7.0236334,147.69,147.65,1.35436131]
[1726984077850,6.7714,147.68,147.64,22.0581]
[1726984078057,6.7719,147.67,147.64,15.2849]
[1726984080174,6.7723,147.66,147.64,15.2849]
[1726984081456,6.7719,147.67,147.64,15.2849]
[1726984082169,6.7719,147.67,147.62,26.7738]
[1726984085274,6.7719,147.67,147.63,6.7736]
[1726984090272,6.7719,147.67,147.62,20.0]
[1726984090788,6.7719,147.67,147.62,26.7737]
[1726984093682,6.7723,147.66,147.62,26.7737]
[1726984096167,6.7719,147.67,147.62,26.7737]
[1726984096662,0.2526334,147.69,147.62,26.7737]
[1726984096663,6.7724,147.66,147.62,26.7737]
[1726984096862,6.7724,147.66,147.62,6.7737]
[1726984098593,0.2526334,147.69,147.63,1.35455541]
[1726984098764,7.0236334,147.69,147.64,6.773]
[1726984099190,7.0236334,147.69,147.65,1.3544613]
[1726984099782,0.2526334,147.69,147.63,6.7735]
[1726984099990,6.7718,147.67,147.62,6.774]
[1726984100770,0.2526334,147.69,147.61,13.0513]
[1726984101092,0.12549,147.68,147.61,6.7745]
[1726984101783,0.25098,147.68,147.61,6.7745]
[1726984102286,6.7728,147.65,147.61,6.7745]
[1726984105434,0.2526334,147.69,147.62,8.12877371]
[1726984105693,6.7719,147.67,147.62,8.12877371]
[1726984105898,6.7719,147.67,147.63,6.7736]
[1726984106897,6.7719,147.67,147.62,6.774]
[1726984107196,0.2526334,147.69,147.62,6.774]
[1726984107372,6.772,147.67,147.61,23.776884]
[1726984108393,6.772,147.67,147.62,8.12868205]
[1726984108995,6.7723,147.66,147.61,19.12868205]
[1726984109217,6.7723,147.66,147.6,15.2849]
[1726984109390,6.7723,147.66,147.62,1.35460273]
[1726984110014,6.7719,147.67,147.62,1.35460273]
[1726984110310,6.7719,147.67,147.61,36.65827829]
[1726984110904,6.7719,147.67,147.62,1.35445653]
[1726984111106,6.7714,147.68,147.61,36.65827829]
[1726984111310,0.2526334,147.69,147.63,36.65827829]
[1726984112396,0.2526334,147.69,147.64,1.35423644]
[1726984112822,0.2526334,147.69,147.66,28.45290429]
[1726984112995,0.2526334,147.69,147.67,1.3540428]
[1726984115912,0.2526334,147.69,147.67,23.776884]
[1726984116218,0.2526334,147.69,147.68,1.35391911]
[1726984116718,0.2526334,147.69,147.68,38.0121974]
[1726984118900,0.2526334,147.69,147.68,58.0121974]
[1726984119718,0.2526334,147.69,147.68,56.65827829]
[1726984120493,0.2526334,147.69,147.68,43.776884]
[1726984120695,0.2526334,147.69,147.67,6.4655]
[1726984121021,0.2526334,147.69,147.67,5.5655]
[1726984122027,0.2526334,147.69,147.68,23.902374]
[1726984123017,0.2526334,147.69,147.68,56.78376829]
[1726984124315,0.2526334,147.69,147.68,45.3814306]
[1726984124501,0.2526334,147.69,147.68,56.78376829]
[1726984130225,0.2526334,147.69,147.68,43.902374]
[1726984130440,0.2526334,147.69,147.67,20.0]
[1726984130624,0.2526334,147.69,147.66,15.697]
[1726984130943,0.2526334,147.69,147.63,6.4655]
[1726984131626,0.2526334,147.69,147.62,15.697]
[1726984131825,7.0236334,147.69,147.62,15.697]
[1726984132031,7.0235334,147.69,147.62,15.697]
[1726984132236,6.7715,147.68,147.6,6.4655]
[1726984133041,0.2526334,147.69,147.59,12.75590429]
[1726984133042,6.7719,147.67,147.59,12.75590429]
[1726984133826,6.7719,147.67,147.6,23.902374]
[1726984134039,6.7714,147.68,147.6,23.902374]
[1726984134241,6.7714,147.68,147.62,23.776884]
[1726984144134,6.7731,147.65,147.57,6.07]
[1726984144346,6.7731,147.65,147.57,12.75590429]
[1726984145351,6.7731,147.65,147.58,43.902374]
[1726984146065,23.1507,147.64,147.58,23.902374]
[1726984147324,23.1507,147.64,147.58,23.776884]